[Event "Titled Tuesday Blitz August 08 Late 2023"]
[White "Xiong, Jeffery"]
[Black "Fedoseev, Vladimir"]
[WhiteFideId "2047640"]
[BlackFideId "24130737"]
[WhiteElo "2978"]
[BlackElo "3099"]
[Result "1-0"]
[Round "8"]
[TimeControl "180+1"]
[Date "2023.08.08"]
[WhiteClock "0:00:53"]
[BlackClock "0:00:00"]
[Board "3"]

1. e4 {[%clk 0:03:00]}  d6 {[%clk 0:02:57]} 2. d4 {[%clk 0:03:00]}  Nf6 {[%clk 0:02:58]} 3. Nc3 {[%clk 0:03:01]}  g6 {[%clk 0:02:58]} 4. Nf3 {[%clk 0:03:01]}  Bg7 {[%clk 0:02:57]} 5. Be3 {[%clk 0:03:02]}  Nc6 {[%clk 0:02:50]} 6. Qd2 {[%clk 0:02:57]}  Ng4 {[%clk 0:02:50]} 7. Bg5 {[%clk 0:02:54]}  h6 {[%clk 0:02:48]} 8. Bh4 {[%clk 0:02:54]}  Nf6 {[%clk 0:02:40]} 9. O-O-O {[%clk 0:02:47]}  g5 {[%clk 0:02:03]} 10. Bg3 {[%clk 0:02:47]}  Nh5 {[%clk 0:02:02]} 11. Bb5 {[%clk 0:02:03]}  a6 {[%clk 0:02:01]} 12. Bxc6+ {[%clk 0:02:03]}  bxc6 {[%clk 0:02:02]} 13. e5 {[%clk 0:01:52]}  Bf5 {[%clk 0:01:59]} 14. Rde1 {[%clk 0:01:48]}  e6 {[%clk 0:01:56]} 15. Ne4 {[%clk 0:01:46]}  d5 {[%clk 0:01:11]} 16. Nc5 {[%clk 0:01:46]}  a5 {[%clk 0:01:11]} 17. Qc3 {[%clk 0:01:44]}  Qb8 {[%clk 0:01:10]} 18. a3 {[%clk 0:01:39]}  Qb5 {[%clk 0:01:08]} 19. h4 {[%clk 0:01:30]}  g4 {[%clk 0:01:04]} 20. Nd2 {[%clk 0:01:30]}  Bf8 {[%clk 0:01:04]} 21. a4 {[%clk 0:01:31]}  Qb6 {[%clk 0:00:47]} 22. Ndb3 {[%clk 0:01:31]}  Be7 {[%clk 0:00:45]} 23. Kb1 {[%clk 0:01:22]}  Qb4 {[%clk 0:00:31]} 24. Qxb4 {[%clk 0:01:21]}  axb4 {[%clk 0:00:32]} 25. Kc1 {[%clk 0:01:18]}  O-O {[%clk 0:00:28]} 26. Kd2 {[%clk 0:01:18]}  Ra7 {[%clk 0:00:28]} 27. Ra1 {[%clk 0:01:18]}  Rfa8 {[%clk 0:00:28]} 28. Ra2 {[%clk 0:01:15]}  Bg6 {[%clk 0:00:18]} 29. Rha1 {[%clk 0:01:14]}  Ng7 {[%clk 0:00:18]} 30. Nd3 {[%clk 0:00:54]}  Nf5 {[%clk 0:00:12]} 31. a5 {[%clk 0:00:54]}  Bxh4 {[%clk 0:00:08]} 32. Bxh4 {[%clk 0:00:54]}  Nxh4 {[%clk 0:00:08]} 33. Nxb4 {[%clk 0:00:54]}  Nxg2 {[%clk 0:00:04]} 34. Nc5 {[%clk 0:00:53]}  Rc8 {[%clk 0:00:03]} 35. Nxc6 {[%clk 0:00:54]}  Raa8 {[%clk 0:00:04]} 36. Ne7+ {[%clk 0:00:54]}  Kg7 {[%clk 0:00:03]} 37. Nxc8 {[%clk 0:00:55]}  Rxc8 {[%clk 0:00:04]} 38. a6 {[%clk 0:00:56]}  Nh4 {[%clk 0:00:04]} 39. a7 {[%clk 0:00:56]}  Ra8 {[%clk 0:00:05]} 40. Ra4 {[%clk 0:00:56]}  Nf3+ {[%clk 0:00:02]} 41. Kc3 {[%clk 0:00:56]}  h5 {[%clk 0:00:01]} 42. Rb4 {[%clk 0:00:56]}  h4 {[%clk 0:00:02]} 43. Rb8 {[%clk 0:00:56]}  Rxa7 {[%clk 0:00:03]} 44. Rxa7 {[%clk 0:00:56]}  h3 {[%clk 0:00:04]} 45. Ra1 {[%clk 0:00:53]}  h2 {[%clk 0:00:00]} 46. Rh1 {[%clk 0:00:53]} 1-0


[Site "https://www.chess.com"]

[Event "Titled Tuesday Blitz August 08 Late 2023"]
[White "Mamedov, Rauf"]
[Black "Terry, Renato"]
[WhiteFideId "13401653"]
[BlackFideId "3803457"]
[WhiteElo "3014"]
[BlackElo "2922"]
[Result "1-0"]
[Round "8"]
[TimeControl "180+1"]
[Date "2023.08.08"]
[WhiteClock "0:00:11"]
[BlackClock "0:00:00"]
[Board "6"]

1. e4 {[%clk 0:03:00]}  e6 {[%clk 0:03:00]} 2. d4 {[%clk 0:03:00]}  d5 {[%clk 0:03:01]} 3. Nd2 {[%clk 0:03:00]}  Be7 {[%clk 0:03:01]} 4. e5 {[%clk 0:02:59]}  c5 {[%clk 0:03:01]} 5. c3 {[%clk 0:02:58]}  Nc6 {[%clk 0:03:01]} 6. Bd3 {[%clk 0:02:59]}  cxd4 {[%clk 0:03:00]} 7. cxd4 {[%clk 0:02:58]}  Qb6 {[%clk 0:03:00]} 8. Ndf3 {[%clk 0:02:54]}  Bd7 {[%clk 0:02:53]} 9. Ne2 {[%clk 0:02:53]}  Nb4 {[%clk 0:02:53]} 10. Bb1 {[%clk 0:02:52]}  Rc8 {[%clk 0:02:54]} 11. Nc3 {[%clk 0:02:49]}  Nc6 {[%clk 0:02:49]} 12. O-O {[%clk 0:02:46]}  Na5 {[%clk 0:02:50]} 13. Bd3 {[%clk 0:02:38]}  a6 {[%clk 0:02:34]} 14. Rb1 {[%clk 0:02:28]}  Nc6 {[%clk 0:02:30]} 15. Be3 {[%clk 0:02:24]}  Nb4 {[%clk 0:02:27]} 16. Be2 {[%clk 0:02:24]}  h5 {[%clk 0:02:19]} 17. Qb3 {[%clk 0:02:22]}  Bd8 {[%clk 0:02:06]} 18. Na4 {[%clk 0:02:07]}  Bxa4 {[%clk 0:02:06]} 19. Qxa4+ {[%clk 0:02:07]}  Nc6 {[%clk 0:01:49]} 20. b4 {[%clk 0:02:07]}  Ne7 {[%clk 0:01:46]} 21. b5 {[%clk 0:02:07]}  axb5 {[%clk 0:01:47]} 22. Rxb5 {[%clk 0:02:06]}  Qc7 {[%clk 0:01:45]} 23. Rfb1 {[%clk 0:02:06]}  Rb8 {[%clk 0:01:45]} 24. Bd3 {[%clk 0:02:03]}  O-O {[%clk 0:01:39]} 25. h3 {[%clk 0:01:54]}  f6 {[%clk 0:01:11]} 26. exf6 {[%clk 0:01:16]}  gxf6 {[%clk 0:01:09]} 27. Qd1 {[%clk 0:01:13]}  Kg7 {[%clk 0:00:46]} 28. Nh4 {[%clk 0:01:11]}  Rh8 {[%clk 0:00:46]} 29. Qf3 {[%clk 0:01:09]}  Kf7 {[%clk 0:00:23]} 30. Bf4 {[%clk 0:00:56]}  Nxd4 {[%clk 0:00:23]} 31. Qe3 {[%clk 0:00:45]}  e5 {[%clk 0:00:22]} 32. Qxd4 {[%clk 0:00:19]}  exd4 {[%clk 0:00:23]} 33. Bxc7 {[%clk 0:00:19]}  Bxc7 {[%clk 0:00:24]} 34. Rxb7 {[%clk 0:00:20]}  Rxb7 {[%clk 0:00:17]} 35. Rxb7 {[%clk 0:00:21]}  Bd6 {[%clk 0:00:08]} 36. Nf5 {[%clk 0:00:21]}  Bc5 {[%clk 0:00:08]} 37. Rc7 {[%clk 0:00:20]}  Ba3 {[%clk 0:00:07]} 38. Nxd4 {[%clk 0:00:20]}  Rb8 {[%clk 0:00:05]} 39. Nb5 {[%clk 0:00:19]}  Bb2 {[%clk 0:00:03]} 40. a4 {[%clk 0:00:19]}  Be5 {[%clk 0:00:03]} 41. Ra7 {[%clk 0:00:18]}  Rc8 {[%clk 0:00:03]} 42. g3 {[%clk 0:00:17]}  Rc1+ {[%clk 0:00:03]} 43. Kg2 {[%clk 0:00:18]}  h4 {[%clk 0:00:04]} 44. gxh4 {[%clk 0:00:18]}  Rd1 {[%clk 0:00:02]} 45. Be2 {[%clk 0:00:19]}  Rd2 {[%clk 0:00:03]} 46. Bg4 {[%clk 0:00:16]}  Kf8 {[%clk 0:00:02]} 47. h5 {[%clk 0:00:16]}  f5 {[%clk 0:00:02]} 48. Bf3 {[%clk 0:00:16]}  Bf4 {[%clk 0:00:02]} 49. Ra8+ {[%clk 0:00:11]}  Kf7 {[%clk 0:00:01]} 50. Kf1 {[%clk 0:00:12]}  Kf6 {[%clk 0:00:01]} 51. a5 {[%clk 0:00:12]}  Ra2 {[%clk 0:00:01]} 52. a6 {[%clk 0:00:12]}  Ra1+ {[%clk 0:00:02]} 53. Kg2 {[%clk 0:00:12]}  Ra2 {[%clk 0:00:01]} 54. a7 {[%clk 0:00:13]}  Be3 {[%clk 0:00:01]} 55. Rf8+ {[%clk 0:00:13]}  Kg5 {[%clk 0:00:01]} 56. a8=Q {[%clk 0:00:10]}  Rxf2+ {[%clk 0:00:02]} 57. Kg3 {[%clk 0:00:11]}  f4+ {[%clk 0:00:00]} 58. Rxf4 {[%clk 0:00:11]} 1-0


[Site "https://www.chess.com"]

[Event "Titled Tuesday Blitz August 08 Late 2023"]
[White "Sjugirov, Sanan"]
[Black "Perez Ponsa, Federico"]
[WhiteFideId "4189302"]
[BlackFideId "117927"]
[WhiteElo "2956"]
[BlackElo "2890"]
[Result "0-1"]
[Round "8"]
[TimeControl "180+1"]
[Date "2023.08.08"]
[WhiteClock "0:00:00"]
[BlackClock "0:00:01"]
[Board "8"]

1. e4 {[%clk 0:03:00]}  c5 {[%clk 0:03:00]} 2. Nf3 {[%clk 0:03:01]}  d6 {[%clk 0:03:01]} 3. d4 {[%clk 0:03:01]}  cxd4 {[%clk 0:03:01]} 4. Nxd4 {[%clk 0:03:02]}  Nf6 {[%clk 0:03:02]} 5. Nc3 {[%clk 0:03:03]}  a6 {[%clk 0:03:03]} 6. a4 {[%clk 0:03:03]}  g6 {[%clk 0:03:00]} 7. Be2 {[%clk 0:03:03]}  Bg7 {[%clk 0:03:01]} 8. O-O {[%clk 0:03:04]}  O-O {[%clk 0:03:01]} 9. Be3 {[%clk 0:03:04]}  Bd7 {[%clk 0:03:01]} 10. a5 {[%clk 0:03:04]}  Nc6 {[%clk 0:03:01]} 11. Nxc6 {[%clk 0:03:04]}  Bxc6 {[%clk 0:03:01]} 12. f3 {[%clk 0:02:53]}  e5 {[%clk 0:02:33]} 13. Nd5 {[%clk 0:02:45]}  Bxd5 {[%clk 0:02:23]} 14. exd5 {[%clk 0:02:46]}  e4 {[%clk 0:02:21]} 15. f4 {[%clk 0:02:42]}  Nd7 {[%clk 0:02:19]} 16. Ra2 {[%clk 0:02:33]}  f5 {[%clk 0:02:16]} 17. c4 {[%clk 0:02:31]}  Rc8 {[%clk 0:02:11]} 18. b4 {[%clk 0:02:30]}  Qe7 {[%clk 0:02:03]} 19. Rc2 {[%clk 0:02:26]}  Kh8 {[%clk 0:01:58]} 20. c5 {[%clk 0:02:17]}  Rfd8 {[%clk 0:01:22]} 21. c6 {[%clk 0:01:57]}  Nf6 {[%clk 0:01:12]} 22. Bb6 {[%clk 0:01:43]}  Re8 {[%clk 0:01:02]} 23. b5 {[%clk 0:01:39]}  axb5 {[%clk 0:00:56]} 24. Bxb5 {[%clk 0:01:40]}  bxc6 {[%clk 0:00:51]} 25. Bxc6 {[%clk 0:01:39]}  Nd7 {[%clk 0:00:48]} 26. Be3 {[%clk 0:01:35]}  Rg8 {[%clk 0:00:43]} 27. a6 {[%clk 0:01:06]}  Nc5 {[%clk 0:00:41]} 28. Qe2 {[%clk 0:01:01]}  Bf6 {[%clk 0:00:37]} 29. h3 {[%clk 0:00:57]}  g5 {[%clk 0:00:32]} 30. fxg5 {[%clk 0:00:50]}  Bxg5 {[%clk 0:00:33]} 31. Bxc5 {[%clk 0:00:33]}  dxc5 {[%clk 0:00:30]} 32. Rxf5 {[%clk 0:00:34]}  Bf6 {[%clk 0:00:27]} 33. Rxf6 {[%clk 0:00:22]}  Qxf6 {[%clk 0:00:27]} 34. Qxe4 {[%clk 0:00:22]}  Rg7 {[%clk 0:00:20]} 35. Ra2 {[%clk 0:00:13]}  Rcg8 {[%clk 0:00:17]} 36. a7 {[%clk 0:00:10]}  Re7 {[%clk 0:00:17]} 37. Qb1 {[%clk 0:00:04]}  Qd4+ {[%clk 0:00:17]} 38. Kh1 {[%clk 0:00:05]}  Qc3 {[%clk 0:00:14]} 39. Ra1 {[%clk 0:00:04]}  Qg7 {[%clk 0:00:11]} 40. Ra2 {[%clk 0:00:04]}  Qc3 {[%clk 0:00:06]} 41. Ra1 {[%clk 0:00:02]}  Qg7 {[%clk 0:00:07]} 42. Qf1 {[%clk 0:00:02]}  Rxa7 {[%clk 0:00:04]} 43. Rxa7 {[%clk 0:00:02]}  Qxa7 {[%clk 0:00:05]} 44. d6 {[%clk 0:00:02]}  Qg7 {[%clk 0:00:03]} 45. d7 {[%clk 0:00:03]}  Qd4 {[%clk 0:00:03]} 46. Qe1 {[%clk 0:00:02]}  c4 {[%clk 0:00:03]} 47. Qe8 {[%clk 0:00:02]}  c3 {[%clk 0:00:03]} 48. Ba4 {[%clk 0:00:00]}  Qg7 {[%clk 0:00:01]} 0-1


[Site "https://www.chess.com"]

[Event "Titled Tuesday Blitz August 08 Late 2023"]
[White "Urazayev, Arystanbek"]
[Black "Zemlyanskii, Ivan"]
[WhiteFideId "13709810"]
[BlackFideId "24249971"]
[WhiteElo "2753"]
[BlackElo "2886"]
[Result "1/2-1/2"]
[Round "8"]
[TimeControl "180+1"]
[Date "2023.08.08"]
[WhiteClock "0:00:09"]
[BlackClock "0:00:03"]
[Board "16"]

1. d4 {[%clk 0:02:53]}  d5 {[%clk 0:02:59]} 2. c4 {[%clk 0:02:54]}  e6 {[%clk 0:02:59]} 3. Nf3 {[%clk 0:02:54]}  Nf6 {[%clk 0:02:57]} 4. Nc3 {[%clk 0:02:54]}  c6 {[%clk 0:02:57]} 5. e3 {[%clk 0:02:55]}  Nbd7 {[%clk 0:02:57]} 6. Qc2 {[%clk 0:02:55]}  Bd6 {[%clk 0:02:56]} 7. b3 {[%clk 0:02:55]}  O-O {[%clk 0:02:56]} 8. Be2 {[%clk 0:02:56]}  b6 {[%clk 0:02:52]} 9. Bb2 {[%clk 0:02:56]}  Bb7 {[%clk 0:02:52]} 10. O-O {[%clk 0:02:56]}  Qe7 {[%clk 0:02:53]} 11. Rfe1 {[%clk 0:02:56]}  Rfd8 {[%clk 0:02:46]} 12. e4 {[%clk 0:02:55]}  dxe4 {[%clk 0:02:42]} 13. Nxe4 {[%clk 0:02:56]}  Nxe4 {[%clk 0:02:25]} 14. Qxe4 {[%clk 0:02:56]}  Nf6 {[%clk 0:02:25]} 15. Qh4 {[%clk 0:02:57]}  Ba3 {[%clk 0:02:25]} 16. Bxa3 {[%clk 0:02:43]}  Qxa3 {[%clk 0:02:26]} 17. Bd3 {[%clk 0:02:43]}  c5 {[%clk 0:02:22]} 18. d5 {[%clk 0:02:32]}  exd5 {[%clk 0:02:05]} 19. Re7 {[%clk 0:02:03]}  dxc4 {[%clk 0:01:56]} 20. Bxc4 {[%clk 0:02:03]}  Bd5 {[%clk 0:01:57]} 21. Rae1 {[%clk 0:01:59]}  Qxa2 {[%clk 0:01:18]} 22. Ng5 {[%clk 0:01:55]}  Re8 {[%clk 0:00:58]} 23. h3 {[%clk 0:01:25]}  Rxe7 {[%clk 0:00:35]} 24. Rxe7 {[%clk 0:01:25]}  Qb1+ {[%clk 0:00:35]} 25. Kh2 {[%clk 0:01:24]}  Qf5 {[%clk 0:00:36]} 26. Nxf7 {[%clk 0:01:10]}  Qg6 {[%clk 0:00:17]} 27. Bxd5 {[%clk 0:00:48]}  Nxd5 {[%clk 0:00:18]} 28. Qc4 {[%clk 0:00:41]}  Qf5 {[%clk 0:00:17]} 29. Ne5 {[%clk 0:00:19]}  Qf4+ {[%clk 0:00:16]} 30. Qxf4 {[%clk 0:00:19]}  Nxf4 {[%clk 0:00:17]} 31. Nc6 {[%clk 0:00:17]}  a5 {[%clk 0:00:16]} 32. Rb7 {[%clk 0:00:17]}  Nd5 {[%clk 0:00:16]} 33. Ne5 {[%clk 0:00:12]}  h6 {[%clk 0:00:13]} 34. Nc4 {[%clk 0:00:12]}  Ra6 {[%clk 0:00:12]} 35. Kg3 {[%clk 0:00:11]}  a4 {[%clk 0:00:10]} 36. bxa4 {[%clk 0:00:10]}  Rxa4 {[%clk 0:00:11]} 37. Nxb6 {[%clk 0:00:10]}  Rb4 {[%clk 0:00:09]} 38. Rb8+ {[%clk 0:00:10]}  Kh7 {[%clk 0:00:09]} 39. Nd7 {[%clk 0:00:11]}  c4 {[%clk 0:00:06]} 40. Rxb4 {[%clk 0:00:09]}  Nxb4 {[%clk 0:00:07]} 41. Kf3 {[%clk 0:00:10]}  c3 {[%clk 0:00:07]} 42. Ke3 {[%clk 0:00:07]}  Nd5+ {[%clk 0:00:04]} 43. Kd3 {[%clk 0:00:05]}  Nf4+ {[%clk 0:00:05]} 44. Kxc3 {[%clk 0:00:05]}  Nxg2 {[%clk 0:00:06]} 45. Kd4 {[%clk 0:00:06]}  Nf4 {[%clk 0:00:06]} 46. h4 {[%clk 0:00:05]}  Ng2 {[%clk 0:00:06]} 47. Nf8+ {[%clk 0:00:04]}  Kg8 {[%clk 0:00:05]} 48. Ng6 {[%clk 0:00:05]}  Kf7 {[%clk 0:00:05]} 49. h5 {[%clk 0:00:06]}  Kf6 {[%clk 0:00:05]} 50. Ke4 {[%clk 0:00:06]}  Kg5 {[%clk 0:00:05]} 51. f4+ {[%clk 0:00:05]}  Kxh5 {[%clk 0:00:03]} 52. f5 {[%clk 0:00:06]}  Nh4 {[%clk 0:00:03]} 53. Ne7 {[%clk 0:00:05]}  Kg5 {[%clk 0:00:04]} 54. Ke5 {[%clk 0:00:06]}  Nf3+ {[%clk 0:00:04]} 55. Ke4 {[%clk 0:00:05]}  Nd2+ {[%clk 0:00:03]} 56. Kd3 {[%clk 0:00:06]}  Nf1 {[%clk 0:00:03]} 57. Ke4 {[%clk 0:00:06]}  Ng3+ {[%clk 0:00:03]} 58. Ke5 {[%clk 0:00:06]}  h5 {[%clk 0:00:04]} 59. Nd5 {[%clk 0:00:07]}  h4 {[%clk 0:00:02]} 60. Nf4 {[%clk 0:00:07]}  Nxf5 {[%clk 0:00:03]} 61. Nh3+ {[%clk 0:00:07]}  Kg4 {[%clk 0:00:04]} 62. Nf2+ {[%clk 0:00:07]}  Kf3 {[%clk 0:00:05]} 63. Ne4 {[%clk 0:00:04]}  h3 {[%clk 0:00:03]} 64. Ng5+ {[%clk 0:00:04]}  Kg4 {[%clk 0:00:02]} 65. Nxh3 {[%clk 0:00:05]}  Nh4 {[%clk 0:00:02]} 66. Nf2+ {[%clk 0:00:05]}  Kg3 {[%clk 0:00:02]} 67. Ne4+ {[%clk 0:00:06]}  Kf3 {[%clk 0:00:03]} 68. Ng5+ {[%clk 0:00:06]}  Ke3 {[%clk 0:00:03]} 69. Ne6 {[%clk 0:00:07]}  g6 {[%clk 0:00:03]} 70. Kf6 {[%clk 0:00:08]}  Kf3 {[%clk 0:00:02]} 71. Nf8 {[%clk 0:00:08]}  Kg4 {[%clk 0:00:03]} 72. Nxg6 {[%clk 0:00:09]} 1/2-1/2


[Site "https://www.chess.com"]

[Event "Titled Tuesday Blitz August 08 Late 2023"]
[White "Holt, Conrad"]
[Black "Yanchenko, Roman"]
[WhiteFideId "2034387"]
[BlackFideId "4137329"]
[WhiteElo "2878"]
[BlackElo "2740"]
[Result "1-0"]
[Round "8"]
[TimeControl "180+1"]
[Date "2023.08.08"]
[WhiteClock "0:00:40"]
[BlackClock "0:00:00"]
[Board "18"]

1. d4 {[%clk 0:02:54]}  d5 {[%clk 0:02:59]} 2. c4 {[%clk 0:02:54]}  c6 {[%clk 0:03:00]} 3. Nc3 {[%clk 0:02:54]}  Nf6 {[%clk 0:03:00]} 4. e3 {[%clk 0:02:54]}  a6 {[%clk 0:03:00]} 5. Nf3 {[%clk 0:02:49]}  Bf5 {[%clk 0:03:00]} 6. Bd3 {[%clk 0:02:47]}  Bg6 {[%clk 0:02:59]} 7. Ne5 {[%clk 0:02:43]}  e6 {[%clk 0:02:58]} 8. Nxg6 {[%clk 0:02:42]}  hxg6 {[%clk 0:02:59]} 9. a4 {[%clk 0:02:40]}  Nbd7 {[%clk 0:02:59]} 10. a5 {[%clk 0:02:36]}  Bd6 {[%clk 0:02:45]} 11. h3 {[%clk 0:02:34]}  Qe7 {[%clk 0:02:42]} 12. Qb3 {[%clk 0:02:32]}  Rb8 {[%clk 0:02:41]} 13. Bd2 {[%clk 0:02:29]}  dxc4 {[%clk 0:02:15]} 14. Bxc4 {[%clk 0:02:12]}  Nd5 {[%clk 0:02:15]} 15. e4 {[%clk 0:02:05]}  Nxc3 {[%clk 0:02:06]} 16. bxc3 {[%clk 0:02:01]}  e5 {[%clk 0:02:00]} 17. O-O {[%clk 0:01:57]}  O-O {[%clk 0:01:55]} 18. Rfe1 {[%clk 0:01:52]}  c5 {[%clk 0:01:46]} 19. Be3 {[%clk 0:01:32]}  cxd4 {[%clk 0:01:43]} 20. cxd4 {[%clk 0:01:31]}  exd4 {[%clk 0:01:44]} 21. Bxd4 {[%clk 0:01:31]}  Be5 {[%clk 0:01:44]} 22. Rad1 {[%clk 0:01:28]}  Bxd4 {[%clk 0:01:11]} 23. Rxd4 {[%clk 0:01:28]}  Ne5 {[%clk 0:01:09]} 24. Bd5 {[%clk 0:01:26]}  Qc5 {[%clk 0:01:07]} 25. Qb6 {[%clk 0:01:12]}  Qxb6 {[%clk 0:00:19]} 26. axb6 {[%clk 0:01:11]}  Rfd8 {[%clk 0:00:20]} 27. Rc1 {[%clk 0:00:59]}  Nd7 {[%clk 0:00:12]} 28. Rc7 {[%clk 0:00:55]}  Nxb6 {[%clk 0:00:11]} 29. Bxf7+ {[%clk 0:00:54]}  Kh7 {[%clk 0:00:12]} 30. Rxd8 {[%clk 0:00:52]}  Rxd8 {[%clk 0:00:13]} 31. Rxb7 {[%clk 0:00:52]}  Nd7 {[%clk 0:00:13]} 32. Rc7 {[%clk 0:00:45]}  Nf6 {[%clk 0:00:12]} 33. e5 {[%clk 0:00:43]}  Nh5 {[%clk 0:00:09]} 34. g3 {[%clk 0:00:41]}  a5 {[%clk 0:00:08]} 35. Rc6 {[%clk 0:00:40]}  Kh8 {[%clk 0:00:00]} 36. Bxg6 {[%clk 0:00:40]} 1-0


[Site "https://www.chess.com"]

[Event "Titled Tuesday Blitz August 08 Late 2023"]
[White "Rakotomaharo, Fy Antenaina"]
[Black "Rasulov, Vugar"]
[WhiteFideId "13100050"]
[BlackFideId "13402390"]
[WhiteElo "2731"]
[BlackElo "2861"]
[Result "0-1"]
[Round "8"]
[TimeControl "180+1"]
[Date "2023.08.08"]
[WhiteClock "0:00:45"]
[BlackClock "0:02:06"]
[Board "20"]

1. Nf3 {[%clk 0:02:52]}  b6 {[%clk 0:02:58]} 2. c4 {[%clk 0:02:50]}  Bb7 {[%clk 0:02:58]} 3. Nc3 {[%clk 0:02:47]}  Nf6 {[%clk 0:02:56]} 4. g3 {[%clk 0:02:47]}  Bxf3 {[%clk 0:02:55]} 5. exf3 {[%clk 0:02:47]}  c5 {[%clk 0:02:56]} 6. Bg2 {[%clk 0:02:46]}  Nc6 {[%clk 0:02:56]} 7. O-O {[%clk 0:02:45]}  Rc8 {[%clk 0:02:56]} 8. f4 {[%clk 0:02:45]}  e6 {[%clk 0:02:56]} 9. b3 {[%clk 0:02:43]}  Be7 {[%clk 0:02:56]} 10. Bb2 {[%clk 0:02:43]}  O-O {[%clk 0:02:57]} 11. Re1 {[%clk 0:02:43]}  Re8 {[%clk 0:02:52]} 12. Ne2 {[%clk 0:02:35]}  d5 {[%clk 0:02:48]} 13. d4 {[%clk 0:02:25]}  dxc4 {[%clk 0:02:46]} 14. bxc4 {[%clk 0:02:14]}  cxd4 {[%clk 0:02:45]} 15. Qa4 {[%clk 0:02:03]}  Na5 {[%clk 0:02:39]} 16. Nxd4 {[%clk 0:01:51]}  Rxc4 {[%clk 0:02:35]} 17. Qd1 {[%clk 0:01:50]}  Bb4 {[%clk 0:02:18]} 18. Re2 {[%clk 0:01:39]}  Bc3 {[%clk 0:02:15]} 19. Bxc3 {[%clk 0:01:38]}  Rxc3 {[%clk 0:02:16]} 20. Nb5 {[%clk 0:01:38]}  Rd3 {[%clk 0:02:15]} 21. Qc2 {[%clk 0:01:35]}  Qd7 {[%clk 0:02:09]} 22. Nxa7 {[%clk 0:00:45]}  Rd6 {[%clk 0:02:06]} 0-1


[Site "https://www.chess.com"]

[Event "Titled Tuesday Blitz August 08 Late 2023"]
[White "Prohaszka, Peter"]
[Black "Asadli, Vugar"]
[WhiteFideId "726265"]
[BlackFideId "13405764"]
[WhiteElo "2721"]
[BlackElo "2838"]
[Result "0-1"]
[Round "8"]
[TimeControl "180+1"]
[Date "2023.08.08"]
[WhiteClock "0:00:00"]
[BlackClock "0:00:49"]
[Board "23"]

1. d4 {[%clk 0:02:54]}  g6 {[%clk 0:03:00]} 2. Nf3 {[%clk 0:02:53]}  Bg7 {[%clk 0:03:01]} 3. e4 {[%clk 0:02:53]}  d6 {[%clk 0:03:02]} 4. c3 {[%clk 0:02:53]}  Nd7 {[%clk 0:03:00]} 5. Bd3 {[%clk 0:02:53]}  e5 {[%clk 0:03:01]} 6. O-O {[%clk 0:02:54]}  Ngf6 {[%clk 0:03:01]} 7. Re1 {[%clk 0:02:54]}  O-O {[%clk 0:03:02]} 8. h3 {[%clk 0:02:55]}  b6 {[%clk 0:03:02]} 9. a4 {[%clk 0:02:54]}  a6 {[%clk 0:03:01]} 10. d5 {[%clk 0:02:51]}  Bb7 {[%clk 0:02:52]} 11. Na3 {[%clk 0:02:50]}  c6 {[%clk 0:02:52]} 12. dxc6 {[%clk 0:02:47]}  Bxc6 {[%clk 0:02:52]} 13. Nc2 {[%clk 0:02:44]}  Nc5 {[%clk 0:02:51]} 14. Nb4 {[%clk 0:02:42]}  Bb7 {[%clk 0:02:45]} 15. Bg5 {[%clk 0:02:41]}  a5 {[%clk 0:02:41]} 16. Nc2 {[%clk 0:02:33]}  d5 {[%clk 0:02:22]} 17. exd5 {[%clk 0:01:53]}  Qxd5 {[%clk 0:02:19]} 18. Bb5 {[%clk 0:01:47]}  Nfe4 {[%clk 0:02:14]} 19. Be7 {[%clk 0:01:35]}  Rfc8 {[%clk 0:02:13]} 20. Qxd5 {[%clk 0:01:29]}  Bxd5 {[%clk 0:02:13]} 21. Ne3 {[%clk 0:01:29]}  Be6 {[%clk 0:02:08]} 22. Ng4 {[%clk 0:01:22]}  Rc7 {[%clk 0:02:03]} 23. Bxc5 {[%clk 0:01:18]}  Nxc5 {[%clk 0:02:03]} 24. Ngxe5 {[%clk 0:01:15]}  Rd8 {[%clk 0:01:52]} 25. Nd4 {[%clk 0:01:13]}  Nb3 {[%clk 0:01:42]} 26. Nxe6 {[%clk 0:00:59]}  fxe6 {[%clk 0:01:42]} 27. Rab1 {[%clk 0:00:42]}  Nd2 {[%clk 0:01:38]} 28. Rbc1 {[%clk 0:00:37]}  Nb3 {[%clk 0:01:29]} 29. Rc2 {[%clk 0:00:25]}  Nd4 {[%clk 0:01:29]} 30. Rcc1 {[%clk 0:00:18]}  Nxb5 {[%clk 0:01:26]} 31. axb5 {[%clk 0:00:18]}  Rd5 {[%clk 0:01:27]} 32. Nf3 {[%clk 0:00:08]}  Rxb5 {[%clk 0:01:27]} 33. Rc2 {[%clk 0:00:09]}  Rc6 {[%clk 0:01:23]} 34. h4 {[%clk 0:00:08]}  h6 {[%clk 0:01:22]} 35. Rce2 {[%clk 0:00:08]}  Kf7 {[%clk 0:01:22]} 36. g3 {[%clk 0:00:08]}  Bf6 {[%clk 0:01:22]} 37. Kg2 {[%clk 0:00:08]}  h5 {[%clk 0:01:20]} 38. Rd1 {[%clk 0:00:09]}  Rd5 {[%clk 0:01:20]} 39. Red2 {[%clk 0:00:07]}  Rcd6 {[%clk 0:01:20]} 40. Kf1 {[%clk 0:00:06]}  b5 {[%clk 0:01:19]} 41. Ke2 {[%clk 0:00:07]}  Ke7 {[%clk 0:01:11]} 42. Ra1 {[%clk 0:00:06]}  a4 {[%clk 0:01:11]} 43. c4 {[%clk 0:00:04]}  Rxd2+ {[%clk 0:01:08]} 44. Nxd2 {[%clk 0:00:04]}  Bxb2 {[%clk 0:01:09]} 45. Ra2 {[%clk 0:00:05]}  Bc1 {[%clk 0:01:00]} 46. Ne4 {[%clk 0:00:02]}  Rd4 {[%clk 0:00:59]} 47. Nc3 {[%clk 0:00:01]}  b4 {[%clk 0:00:57]} 48. Nxa4 {[%clk 0:00:01]}  b3 {[%clk 0:00:57]} 49. Ra1 {[%clk 0:00:02]}  Rxc4 {[%clk 0:00:57]} 50. Rb1 {[%clk 0:00:02]}  Rxa4 {[%clk 0:00:54]} 51. Rxc1 {[%clk 0:00:02]}  Ra2+ {[%clk 0:00:55]} 52. Ke3 {[%clk 0:00:02]}  Kd6 {[%clk 0:00:52]} 53. Rc4 {[%clk 0:00:02]}  Rc2 {[%clk 0:00:49]} 54. Rb4 {[%clk 0:00:02]}  b2 {[%clk 0:00:49]} 55. f3 {[%clk 0:00:03]}  Kc5 {[%clk 0:00:49]} 56. Rb8 {[%clk 0:00:02]}  Kc4 {[%clk 0:00:49]} 57. g4 {[%clk 0:00:01]}  Rh2 {[%clk 0:00:48]} 58. gxh5 {[%clk 0:00:01]}  gxh5 {[%clk 0:00:49]} 59. f4 {[%clk 0:00:01]}  Kc3 {[%clk 0:00:49]} 60. Rc8+ {[%clk 0:00:01]}  Kb3 {[%clk 0:00:49]} 61. Rb8+ {[%clk 0:00:01]}  Ka2 {[%clk 0:00:49]} 62. Ra8+ {[%clk 0:00:02]}  Kb1 {[%clk 0:00:49]} 63. Re8 {[%clk 0:00:02]}  Kc1 {[%clk 0:00:49]} 64. Rc8+ {[%clk 0:00:00]}  Rc2 {[%clk 0:00:49]} 0-1


[Site "https://www.chess.com"]

[Event "Titled Tuesday Blitz August 08 Late 2023"]
[White "Tologon tegin, Semetei"]
[Black "Talibov, Shiroghlan"]
[WhiteFideId "13800574"]
[BlackFideId "13429078"]
[WhiteElo "2635"]
[BlackElo "2831"]
[Result "0-1"]
[Round "8"]
[TimeControl "180+1"]
[Date "2023.08.08"]
[WhiteClock "0:01:22"]
[BlackClock "0:02:05"]
[Board "25"]

1. e4 {[%clk 0:03:00]}  c5 {[%clk 0:02:54]} 2. Nf3 {[%clk 0:03:00]}  Nc6 {[%clk 0:02:54]} 3. d4 {[%clk 0:03:00]}  cxd4 {[%clk 0:02:55]} 4. Nxd4 {[%clk 0:03:00]}  Nf6 {[%clk 0:02:56]} 5. Nc3 {[%clk 0:03:00]}  e6 {[%clk 0:02:56]} 6. Nxc6 {[%clk 0:02:59]}  bxc6 {[%clk 0:02:55]} 7. e5 {[%clk 0:03:00]}  Nd5 {[%clk 0:02:55]} 8. Ne4 {[%clk 0:03:00]}  Qc7 {[%clk 0:02:56]} 9. f4 {[%clk 0:02:59]}  Qb6 {[%clk 0:02:56]} 10. a3 {[%clk 0:02:50]}  Ne3 {[%clk 0:02:47]} 11. Qd2 {[%clk 0:02:45]}  Nxf1 {[%clk 0:02:40]} 12. Rxf1 {[%clk 0:02:46]}  Be7 {[%clk 0:02:38]} 13. Nd6+ {[%clk 0:02:43]}  Bxd6 {[%clk 0:02:33]} 14. Qxd6 {[%clk 0:02:44]}  Ba6 {[%clk 0:02:33]} 15. Rf2 {[%clk 0:02:42]}  f5 {[%clk 0:02:32]} 16. exf6 {[%clk 0:02:39]}  gxf6 {[%clk 0:02:31]} 17. f5 {[%clk 0:02:39]}  O-O-O {[%clk 0:02:17]} 18. b4 {[%clk 0:01:40]}  Rhe8 {[%clk 0:02:10]} 19. Bf4 {[%clk 0:01:28]}  exf5+ {[%clk 0:02:07]} 20. Kd2 {[%clk 0:01:22]}  Qxf2+ {[%clk 0:02:05]} 0-1


[Site "https://www.chess.com"]